[Event "Late-Titled-Tuesday-Blitz-April-16-2024"]
[Site "Chess.com"]
[Date "2024.04.16"]
[Round "10"]
[White "RebecaJimnz"]
[Black "XiaoKangZhong"]
[Result "0-1"]
[WhiteElo "2260"]
[BlackElo "2511"]
[TimeControl "180+1"]
[EndTime "15:53:22 PDT"]
[Termination "XiaoKangZhong won on time"]

1. e4 {[%clk 0:03:00.9]} 1... c6 {[%clk 0:02:58.7]} 2. d4 {[%clk 0:03:00.1]}
2... d5 {[%clk 0:02:59.6]} 3. exd5 {[%clk 0:03:00.6]} 3... cxd5 {[%clk
0:02:59.9]} 4. Be2 {[%clk 0:03:00.5]} 4... Nc6 {[%clk 0:02:59.7]} 5. c3 {[%clk
0:03:00.2]} 5... Nf6 {[%clk 0:02:58]} 6. Nf3 {[%clk 0:02:59.1]} 6... Bf5 {[%clk
0:02:58.2]} 7. O-O {[%clk 0:02:58.5]} 7... e6 {[%clk 0:02:58.2]} 8. Bg5 {[%clk
0:02:55]} 8... Bd6 {[%clk 0:02:54.7]} 9. Bd3 {[%clk 0:02:53.3]} 9... Bg4 {[%clk
0:02:51.3]} 10. Nbd2 {[%clk 0:02:48.9]} 10... h6 {[%clk 0:02:49.9]} 11. Bh4
{[%clk 0:02:41.4]} 11... Qc7 {[%clk 0:02:38.5]} 12. Bg3 {[%clk 0:02:04.4]} 12...
Bxg3 {[%clk 0:02:36.9]} 13. hxg3 {[%clk 0:02:05.3]} 13... O-O {[%clk 0:02:33.6]}
14. Rc1 {[%clk 0:02:00.6]} 14... Qb6 {[%clk 0:02:22]} 15. Nb3 {[%clk 0:01:49.3]}
15... e5 {[%clk 0:02:19]} 16. dxe5 {[%clk 0:01:44.9]} 16... Nxe5 {[%clk
0:02:17.7]} 17. Be2 {[%clk 0:01:45.5]} 17... Ng6 {[%clk 0:02:04.3]} 18. Qc2
{[%clk 0:01:20]} 18... Rad8 {[%clk 0:01:56.1]} 19. Nbd4 {[%clk 0:01:14.6]} 19...
Rfe8 {[%clk 0:01:54.7]} 20. Bd3 {[%clk 0:01:08.5]} 20... Ne4 {[%clk 0:01:47]}
21. Rfe1 {[%clk 0:00:54]} 21... h5 {[%clk 0:01:28.8]} 22. Bxe4 {[%clk
0:00:47.7]} 22... dxe4 {[%clk 0:01:27.3]} 23. Rxe4 {[%clk 0:00:46.2]} 23... Rxe4
{[%clk 0:01:25.3]} 24. Qxe4 {[%clk 0:00:45.8]} 24... Qxb2 {[%clk 0:01:25.6]} 25.
Rb1 {[%clk 0:00:23.1]} 25... Qxc3 {[%clk 0:01:18.8]} 26. Rxb7 {[%clk 0:00:23.6]}
26... Qa1+ {[%clk 0:01:18.1]} 27. Kh2 {[%clk 0:00:23.4]} 27... Qxa2 {[%clk
0:01:16.6]} 28. Ng5 {[%clk 0:00:17.4]} 28... Rf8 {[%clk 0:01:06.4]} 29. Nxf7
{[%clk 0:00:02.2]} 29... Rxf7 {[%clk 0:01:02.5]} 0-1

[Event "Late-Titled-Tuesday-Blitz-April-16-2024"]
[Site "Chess.com"]
[Date "2024.04.16"]
[Round "10"]
[White "MathiasWomacka"]
[Black "Fjal"]
[Result "1-0"]
[WhiteElo "2507"]
[BlackElo "2330"]
[TimeControl "180+1"]
[EndTime "15:53:29 PDT"]
[Termination "MathiasWomacka won by resignation"]

1. e4 {[%clk 0:03:00.9]} 1... d6 {[%clk 0:02:50.7]} 2. d4 {[%clk 0:02:59.4]}
2... Nf6 {[%clk 0:02:48.1]} 3. Nc3 {[%clk 0:02:59.8]} 3... g6 {[%clk 0:02:48.3]}
4. f4 {[%clk 0:03:00]} 4... Bg7 {[%clk 0:02:48.3]} 5. Nf3 {[%clk 0:03:00.5]}
5... O-O {[%clk 0:02:47.8]} 6. Bd3 {[%clk 0:03:00.8]} 6... Nc6 {[%clk
0:02:46.1]} 7. O-O {[%clk 0:02:59.2]} 7... e5 {[%clk 0:02:46.6]} 8. dxe5 {[%clk
0:02:59]} 8... dxe5 {[%clk 0:02:46.7]} 9. f5 {[%clk 0:02:59.7]} 9... Nd4 {[%clk
0:02:46.6]} 10. Nxe5 {[%clk 0:02:48.5]} 10... Nxe4 {[%clk 0:02:42.1]} 11. Nxe4
{[%clk 0:02:41.1]} 11... Bxe5 {[%clk 0:02:41.2]} 12. fxg6 {[%clk 0:02:26]} 12...
fxg6 {[%clk 0:02:31.7]} 13. Rxf8+ {[%clk 0:02:19.9]} 13... Qxf8 {[%clk
0:02:32.6]} 14. Be3 {[%clk 0:01:56.4]} 14... Bf5 {[%clk 0:02:25.8]} 15. c3
{[%clk 0:01:47.2]} 15... Ne6 {[%clk 0:02:21.5]} 16. Qb3 {[%clk 0:01:43.7]} 16...
Kg7 {[%clk 0:02:18.5]} 17. Rf1 {[%clk 0:01:33.8]} 17... Rd8 {[%clk 0:02:09.3]}
18. Bc4 {[%clk 0:01:20.2]} 18... Qe7 {[%clk 0:02:09]} 19. Ng3 {[%clk 0:01:12.2]}
19... Nc5 {[%clk 0:02:06.6]} 20. Nxf5+ {[%clk 0:01:02.6]} 20... gxf5 {[%clk
0:02:07.5]} 21. Qc2 {[%clk 0:00:59]} 21... f4 {[%clk 0:02:02.7]} 22. Bxf4 {[%clk
0:00:55.2]} 22... Bxf4 {[%clk 0:01:56.8]} 23. Rxf4 {[%clk 0:00:56.1]} 23... Qe3+
{[%clk 0:01:56.5]} 24. Qf2 {[%clk 0:00:54.7]} 24... Rd1+ {[%clk 0:01:56.3]} 25.
Bf1 {[%clk 0:00:54.4]} 25... Rxf1+ {[%clk 0:01:34]} 26. Kxf1 {[%clk 0:00:55.3]}
26... Qc1+ {[%clk 0:01:34.1]} 27. Ke2 {[%clk 0:00:55]} 27... Qxb2+ {[%clk
0:01:30.7]} 28. Kf3 {[%clk 0:00:48.4]} 28... Qxf2+ {[%clk 0:01:20.9]} 29. Kxf2
{[%clk 0:00:49.3]} 29... Nd3+ {[%clk 0:01:21.1]} 30. Ke3 {[%clk 0:00:49.7]}
30... Nxf4 {[%clk 0:01:22]} 31. Kxf4 {[%clk 0:00:50.3]} 31... Kf6 {[%clk
0:01:12.3]} 32. g4 {[%clk 0:00:49.8]} 32... c5 {[%clk 0:01:12]} 33. g5+ {[%clk
0:00:48.2]} 33... Kg6 {[%clk 0:01:11.8]} 34. Kg4 {[%clk 0:00:47.7]} 34... h6
{[%clk 0:01:12.3]} 35. gxh6 {[%clk 0:00:44.2]} 35... Kxh6 {[%clk 0:01:13.2]} 36.
Kf5 {[%clk 0:00:44.2]} 36... b5 {[%clk 0:01:13.9]} 37. Ke5 {[%clk 0:00:40.9]}
37... b4 {[%clk 0:01:14.4]} 38. cxb4 {[%clk 0:00:30.3]} 38... cxb4 {[%clk
0:01:15.3]} 39. Kd4 {[%clk 0:00:30.2]} 39... Kh5 {[%clk 0:01:11.7]} 40. Kc4
{[%clk 0:00:30.3]} 40... Kh4 {[%clk 0:01:12.4]} 41. Kxb4 {[%clk 0:00:30.6]}
41... Kh3 {[%clk 0:01:13.1]} 42. Kb5 {[%clk 0:00:30.6]} 42... Kxh2 {[%clk
0:01:13.7]} 43. Ka6 {[%clk 0:00:30.7]} 43... Kg3 {[%clk 0:01:14.3]} 44. Kxa7
{[%clk 0:00:30.9]} 44... Kf4 {[%clk 0:01:15.2]} 45. a4 {[%clk 0:00:25.2]} 45...
Ke5 {[%clk 0:01:15.4]} 46. a5 {[%clk 0:00:24.7]} 1-0

[Event "Late-Titled-Tuesday-Blitz-April-16-2024"]
[Site "Chess.com"]
[Date "2024.04.16"]
[Round "10"]
[White "dennisodessa"]
[Black "GothamChess"]
[Result "0-1"]
[WhiteElo "2555"]
[BlackElo "2702"]
[TimeControl "180+1"]
[EndTime "15:53:31 PDT"]
[Termination "GothamChess won by resignation"]

1. d4 {[%clk 0:02:58.9]} 1... d5 {[%clk 0:02:58.3]} 2. c4 {[%clk 0:02:59.4]}
2... dxc4 {[%clk 0:02:58.2]} 3. e3 {[%clk 0:02:59.7]} 3... Nf6 {[%clk
0:02:57.3]} 4. Bxc4 {[%clk 0:03:00]} 4... e6 {[%clk 0:02:57.5]} 5. Nf3 {[%clk
0:02:59.4]} 5... c5 {[%clk 0:02:58.1]} 6. O-O {[%clk 0:02:59.7]} 6... cxd4
{[%clk 0:02:58.3]} 7. Nxd4 {[%clk 0:02:47.2]} 7... a6 {[%clk 0:02:57.2]} 8. a4
{[%clk 0:02:44.3]} 8... Be7 {[%clk 0:02:51.7]} 9. Nc3 {[%clk 0:02:43.6]} 9...
O-O {[%clk 0:02:50.4]} 10. b3 {[%clk 0:02:38.4]} 10... Bd7 {[%clk 0:02:48.5]}
11. Bb2 {[%clk 0:02:32.9]} 11... Nc6 {[%clk 0:02:48.4]} 12. Nxc6 {[%clk
0:02:16.6]} 12... Bxc6 {[%clk 0:02:48.5]} 13. Qe2 {[%clk 0:02:13.5]} 13... Qa5
{[%clk 0:02:44.2]} 14. Rfd1 {[%clk 0:02:13.1]} 14... Qg5 {[%clk 0:02:38.1]} 15.
f3 {[%clk 0:02:13.2]} 15... Bc5 {[%clk 0:02:33.8]} 16. Re1 {[%clk 0:02:00]}
16... Rad8 {[%clk 0:02:31]} 17. Rad1 {[%clk 0:01:42.5]} 17... Nh5 {[%clk
0:02:27.4]} 18. Rxd8 {[%clk 0:00:47.1]} 18... Rxd8 {[%clk 0:02:25]} 19. Ne4
{[%clk 0:00:48]} 19... Bxe4 {[%clk 0:02:11.3]} 20. fxe4 {[%clk 0:00:48.9]} 20...
Nf4 {[%clk 0:01:57.4]} 21. Qc2 {[%clk 0:00:49]} 21... Nh3+ {[%clk 0:01:21.1]}
22. Kh1 {[%clk 0:00:48.7]} 22... Bxe3 {[%clk 0:01:21]} 23. Qc3 {[%clk
0:00:18.8]} 23... Nf2+ {[%clk 0:00:56.2]} 24. Kg1 {[%clk 0:00:18.7]} 24... Nd1+
{[%clk 0:00:55.8]} 25. Rxe3 {[%clk 0:00:15.9]} 25... Nxc3 {[%clk 0:00:53.8]} 26.
Rxc3 {[%clk 0:00:16.8]} 26... Qd2 {[%clk 0:00:41.3]} 0-1

[Event "Late-Titled-Tuesday-Blitz-April-16-2024"]
[Site "Chess.com"]
[Date "2024.04.16"]
[Round "10"]
[White "JiangoFett"]
[Black "hristos03"]
[Result "1-0"]
[WhiteElo "2530"]
[BlackElo "2359"]
[TimeControl "180+1"]
[EndTime "15:53:33 PDT"]
[Termination "JiangoFett won on time"]

1. d4 {[%clk 0:03:00.9]} 1... Nf6 {[%clk 0:02:59.8]} 2. c4 {[%clk 0:03:00.5]}
2... e6 {[%clk 0:02:56.9]} 3. g3 {[%clk 0:03:00.6]} 3... c5 {[%clk 0:02:57.1]}
4. d5 {[%clk 0:03:00.8]} 4... exd5 {[%clk 0:02:57.5]} 5. cxd5 {[%clk 0:03:01.7]}
5... d6 {[%clk 0:02:57.9]} 6. Nc3 {[%clk 0:03:02.3]} 6... g6 {[%clk 0:02:58.1]}
7. Bg2 {[%clk 0:03:01]} 7... Bg7 {[%clk 0:02:58.5]} 8. Nf3 {[%clk 0:03:01.7]}
8... O-O {[%clk 0:02:59]} 9. O-O {[%clk 0:03:01.9]} 9... Na6 {[%clk 0:02:58.3]}
10. Re1 {[%clk 0:03:00.6]} 10... Nc7 {[%clk 0:02:58.4]} 11. a4 {[%clk
0:03:00.2]} 11... a6 {[%clk 0:02:55.1]} 12. Nd2 {[%clk 0:02:54.7]} 12... Rb8
{[%clk 0:02:53.7]} 13. a5 {[%clk 0:02:54.8]} 13... Nb5 {[%clk 0:02:12.1]} 14.
Nc4 {[%clk 0:02:53.4]} 14... Re8 {[%clk 0:01:54.9]} 15. Bf4 {[%clk 0:02:49.8]}
15... Bf8 {[%clk 0:01:04.3]} 16. e4 {[%clk 0:02:44.9]} 16... Nh5 {[%clk
0:00:55]} 17. Be3 {[%clk 0:02:30.7]} 17... Bg7 {[%clk 0:00:52.5]} 18. Qd3 {[%clk
0:02:09.3]} 18... Nd4 {[%clk 0:00:31.3]} 19. f4 {[%clk 0:01:49.4]} 19... Nb5
{[%clk 0:00:15.7]} 20. Bf2 {[%clk 0:01:37.7]} 20... Bd7 {[%clk 0:00:14.8]} 21.
e5 {[%clk 0:01:22.9]} 21... Bf5 {[%clk 0:00:10.2]} 22. Qf1 {[%clk 0:01:07.9]}
22... dxe5 {[%clk 0:00:08.3]} 23. fxe5 {[%clk 0:01:08.8]} 23... Nd4 {[%clk
0:00:06.5]} 24. Rad1 {[%clk 0:01:04]} 24... Rc8 {[%clk 0:00:05.6]} 25. Nd6
{[%clk 0:01:01.6]} 25... Qxa5 {[%clk 0:00:04]} 26. Nxc8 {[%clk 0:01:00]} 26...
Rxc8 {[%clk 0:00:03.8]} 27. e6 {[%clk 0:00:57.5]} 27... fxe6 {[%clk 0:00:03.3]}
28. dxe6 {[%clk 0:00:58]} 28... Nxe6 {[%clk 0:00:02.5]} 29. Bd5 {[%clk
0:00:56.4]} 29... Kh8 {[%clk 0:00:02.3]} 30. Bxe6 {[%clk 0:00:56.1]} 30... Bxe6
{[%clk 0:00:01.8]} 31. Rxe6 {[%clk 0:00:57]} 1-0

[Event "Late-Titled-Tuesday-Blitz-April-16-2024"]
[Site "Chess.com"]
[Date "2024.04.16"]
[Round "10"]
[White "PotapovaM"]
[Black "Bryanl106"]
[Result "0-1"]
[WhiteElo "2541"]
[BlackElo "2705"]
[TimeControl "180+1"]
[EndTime "15:53:38 PDT"]
[Termination "Bryanl106 won by resignation"]

1. d4 {[%clk 0:03:00.9]} 1... Nf6 {[%clk 0:02:58.2]} 2. c4 {[%clk 0:03:01.6]}
2... g6 {[%clk 0:02:58.4]} 3. Nc3 {[%clk 0:03:01.8]} 3... Bg7 {[%clk 0:02:58.8]}
4. e4 {[%clk 0:03:02]} 4... d6 {[%clk 0:02:59.4]} 5. Be2 {[%clk 0:03:00.3]} 5...
O-O {[%clk 0:02:59.6]} 6. f4 {[%clk 0:03:01]} 6... c5 {[%clk 0:02:58.5]} 7. Nf3
{[%clk 0:02:59.6]} 7... cxd4 {[%clk 0:02:54.9]} 8. Nxd4 {[%clk 0:02:59.6]} 8...
Nc6 {[%clk 0:02:42]} 9. Be3 {[%clk 0:02:58.5]} 9... e5 {[%clk 0:02:37.1]} 10.
Nxc6 {[%clk 0:02:56.4]} 10... bxc6 {[%clk 0:02:36.5]} 11. O-O {[%clk 0:02:55.2]}
11... exf4 {[%clk 0:02:28]} 12. Bxf4 {[%clk 0:02:54.9]} 12... Qb6+ {[%clk
0:02:26.9]} 13. Kh1 {[%clk 0:02:55.5]} 13... Qxb2 {[%clk 0:02:24.8]} 14. Na4
{[%clk 0:02:55.4]} 14... Qb7 {[%clk 0:02:20.9]} 15. Rb1 {[%clk 0:02:52.5]} 15...
Qd7 {[%clk 0:02:17.2]} 16. Bxd6 {[%clk 0:02:50.1]} 16... Rd8 {[%clk 0:02:16.2]}
17. e5 {[%clk 0:02:50.3]} 17... Ne4 {[%clk 0:02:13.6]} 18. c5 {[%clk 0:02:39]}
18... Qe8 {[%clk 0:02:10.1]} 19. Bc4 {[%clk 0:02:26.8]} 19... Be6 {[%clk
0:02:08.8]} 20. Bxe6 {[%clk 0:02:14.2]} 20... Qxe6 {[%clk 0:02:09.7]} 21. Rb7
{[%clk 0:02:14.2]} 21... Bxe5 {[%clk 0:01:58.5]} 22. Qf3 {[%clk 0:01:39.6]}
22... Bxd6 {[%clk 0:01:52.2]} 23. cxd6 {[%clk 0:01:36.1]} 23... Nxd6 {[%clk
0:01:52.2]} 24. Nc5 {[%clk 0:01:30.3]} 24... Qc4 {[%clk 0:01:50.7]} 25. Qf6
{[%clk 0:00:16.2]} 25... Nxb7 {[%clk 0:01:24]} 26. Nxb7 {[%clk 0:00:17.1]} 26...
Rd2 {[%clk 0:01:10.2]} 27. Nd6 {[%clk 0:00:15.8]} 27... Qe6 {[%clk 0:01:09.2]}
28. Ne4 {[%clk 0:00:12.7]} 28... Qxf6 {[%clk 0:01:06.6]} 29. Nxf6+ {[%clk
0:00:12.2]} 29... Kg7 {[%clk 0:01:06.4]} 30. g4 {[%clk 0:00:11.3]} 30... Rxa2
{[%clk 0:01:04.5]} 31. g5 {[%clk 0:00:11.7]} 31... Rd8 {[%clk 0:01:04.7]} 32.
Re1 {[%clk 0:00:10.3]} 32... Rdd2 {[%clk 0:00:55.7]} 33. h4 {[%clk 0:00:09.2]}
33... Rh2+ {[%clk 0:00:55.7]} 34. Kg1 {[%clk 0:00:09.2]} 34... Rag2+ {[%clk
0:00:55.9]} 35. Kf1 {[%clk 0:00:09.6]} 35... Rh1+ {[%clk 0:00:56.8]} 36. Kxg2
{[%clk 0:00:09.4]} 36... Rxe1 {[%clk 0:00:57.7]} 0-1

[Event "Late-Titled-Tuesday-Blitz-April-16-2024"]
[Site "Chess.com"]
[Date "2024.04.16"]
[Round "10"]
[White "ChessBrainiacOnTwitch"]
[Black "ReadySkate"]
[Result "1-0"]
[WhiteElo "2827"]
[BlackElo "2635"]
[TimeControl "180+1"]
[EndTime "15:53:46 PDT"]
[Termination "ChessBrainiacOnTwitch won by resignation"]

1. e4 {[%clk 0:03:00.9]} 1... c5 {[%clk 0:02:59.8]} 2. Nf3 {[%clk 0:03:00]} 2...
d6 {[%clk 0:03:00.3]} 3. d4 {[%clk 0:02:55]} 3... cxd4 {[%clk 0:03:01.2]} 4.
Nxd4 {[%clk 0:02:55.9]} 4... Nf6 {[%clk 0:03:01.1]} 5. Nc3 {[%clk 0:02:56.1]}
5... a6 {[%clk 0:03:01.2]} 6. Nf3 {[%clk 0:02:52.7]} 6... h6 {[%clk 0:02:59.3]}
7. e5 {[%clk 0:02:44]} 7... dxe5 {[%clk 0:02:56.5]} 8. Qxd8+ {[%clk 0:02:44.2]}
8... Kxd8 {[%clk 0:02:57.4]} 9. Nxe5 {[%clk 0:02:45.1]} 9... Ke8 {[%clk
0:02:57]} 10. Bf4 {[%clk 0:02:23.3]} 10... Bf5 {[%clk 0:02:50.8]} 11. O-O-O
{[%clk 0:02:21.8]} 11... Nbd7 {[%clk 0:02:49.5]} 12. Bc4 {[%clk 0:02:16.4]}
12... e6 {[%clk 0:02:47.5]} 13. f3 {[%clk 0:02:09.8]} 13... Bb4 {[%clk
0:02:39.6]} 14. Nxd7 {[%clk 0:02:05.3]} 14... Nxd7 {[%clk 0:02:38.2]} 15. Ne4
{[%clk 0:02:05.7]} 15... Bxe4 {[%clk 0:02:35.6]} 16. fxe4 {[%clk 0:02:06.6]}
16... Rc8 {[%clk 0:02:35.4]} 17. Bb3 {[%clk 0:02:04]} 17... Ke7 {[%clk
0:02:34.4]} 18. c3 {[%clk 0:02:02.2]} 18... Bc5 {[%clk 0:02:32.4]} 19. e5 {[%clk
0:02:01.8]} 19... g5 {[%clk 0:02:26.1]} 20. Bg3 {[%clk 0:02:00.9]} 20... Be3+
{[%clk 0:02:26]} 21. Kc2 {[%clk 0:01:58.3]} 21... Bf4 {[%clk 0:02:26.6]} 22.
Bxf4 {[%clk 0:01:45.8]} 22... gxf4 {[%clk 0:02:27.5]} 23. Rhf1 {[%clk
0:01:42.3]} 23... Rhg8 {[%clk 0:02:26.3]} 24. Rd2 {[%clk 0:01:41.7]} 24... Nxe5
{[%clk 0:02:19]} 25. Rxf4 {[%clk 0:01:40.8]} 25... Rg5 {[%clk 0:02:17.8]} 26. g3
{[%clk 0:01:38.4]} 26... Rcg8 {[%clk 0:02:13.1]} 27. a4 {[%clk 0:01:36.5]} 27...
Rg4 {[%clk 0:02:12.3]} 28. Rdf2 {[%clk 0:01:35.1]} 28... Rxf4 {[%clk 0:02:09.8]}
29. Rxf4 {[%clk 0:01:36]} 29... Ng4 {[%clk 0:02:10.1]} 30. Rb4 {[%clk
0:01:27.7]} 30... b5 {[%clk 0:02:08.8]} 31. axb5 {[%clk 0:01:24.1]} 31... axb5
{[%clk 0:02:09.7]} 32. Rxb5 {[%clk 0:01:25]} 32... Nxh2 {[%clk 0:02:08.7]} 33.
Rh5 {[%clk 0:01:19.9]} 33... Nf1 {[%clk 0:02:05.6]} 34. Rxh6 {[%clk 0:01:18.8]}
34... Rxg3 {[%clk 0:02:04.8]} 35. Ba2 {[%clk 0:01:11.8]} 35... Rg2+ {[%clk
0:02:03.1]} 36. Kc1 {[%clk 0:01:08.2]} 36... Ng3 {[%clk 0:01:59.1]} 37. Bc4
{[%clk 0:01:05.7]} 37... Nf5 {[%clk 0:01:57.4]} 38. Rh1 {[%clk 0:00:58.6]} 38...
Ne3 {[%clk 0:01:56.2]} 39. Bd3 {[%clk 0:00:58.1]} 39... Rf2 {[%clk 0:01:55.2]}
40. Re1 {[%clk 0:00:57.8]} 40... Nd5 {[%clk 0:01:54.6]} 41. Be4 {[%clk
0:00:52.9]} 41... Nb6 {[%clk 0:01:51.9]} 42. Bd3 {[%clk 0:00:45.7]} 42... f5
{[%clk 0:01:49.6]} 43. c4 {[%clk 0:00:42.7]} 43... Na4 {[%clk 0:01:49.2]} 44. b4
{[%clk 0:00:41.2]} 44... Kd6 {[%clk 0:01:45]} 45. Bc2 {[%clk 0:00:38.4]} 45...
Nc3 {[%clk 0:01:42.4]} 46. Kb2 {[%clk 0:00:36.1]} 46... Ne2 {[%clk 0:01:40.5]}
47. Rd1+ {[%clk 0:00:34.4]} 47... Ke5 {[%clk 0:01:38.8]} 48. Rd2 {[%clk
0:00:33.2]} 48... Kf4 {[%clk 0:01:33.6]} 49. b5 {[%clk 0:00:25.8]} 49... Ke3
{[%clk 0:01:33]} 50. Rd3+ {[%clk 0:00:17.2]} 50... Ke4 {[%clk 0:01:31.7]} 51. b6
{[%clk 0:00:16.1]} 51... Nd4 {[%clk 0:01:22.4]} 52. Rxd4+ {[%clk 0:00:14.3]}
52... Kxd4 {[%clk 0:01:23]} 53. b7 {[%clk 0:00:15.2]} 1-0

[Event "Late-Titled-Tuesday-Blitz-April-16-2024"]
[Site "Chess.com"]
[Date "2024.04.16"]
[Round "10"]
[White "LUISMIGUELOV"]
[Black "Cluke86"]
[Result "1-0"]
[WhiteElo "2201"]
[BlackElo "2326"]
[TimeControl "180+1"]
[EndTime "15:53:48 PDT"]
[Termination "LUISMIGUELOV won by resignation"]

1. d4 {[%clk 0:02:50.8]} 1... d6 {[%clk 0:03:00.9]} 2. c3 {[%clk 0:02:42.4]}
2... Nf6 {[%clk 0:02:59]} 3. Nf3 {[%clk 0:02:42.2]} 3... g6 {[%clk 0:02:56.5]}
4. Bg5 {[%clk 0:02:41.5]} 4... Bg7 {[%clk 0:02:56.5]} 5. Nbd2 {[%clk 0:02:41.3]}
5... O-O {[%clk 0:02:54]} 6. Qc2 {[%clk 0:02:41]} 6... d5 {[%clk 0:02:49.9]} 7.
e3 {[%clk 0:02:39.4]} 7... c5 {[%clk 0:02:48.2]} 8. Ne5 {[%clk 0:02:36.6]} 8...
c4 {[%clk 0:02:44.7]} 9. b3 {[%clk 0:02:33.9]} 9... b5 {[%clk 0:02:43.9]} 10. a4
{[%clk 0:02:32.9]} 10... cxb3 {[%clk 0:02:38.6]} 11. Qxb3 {[%clk 0:02:31.4]}
11... bxa4 {[%clk 0:02:37.3]} 12. Qxa4 {[%clk 0:02:26]} 12... Nbd7 {[%clk
0:02:34.2]} 13. f4 {[%clk 0:02:23.5]} 13... Nb6 {[%clk 0:02:31.2]} 14. Qc2
{[%clk 0:02:16.7]} 14... Bf5 {[%clk 0:02:16.6]} 15. Bd3 {[%clk 0:02:16.3]} 15...
Bxd3 {[%clk 0:02:16.5]} 16. Qxd3 {[%clk 0:02:16.4]} 16... Ne8 {[%clk 0:02:14.1]}
17. Bh4 {[%clk 0:02:11.7]} 17... Nd6 {[%clk 0:02:13.5]} 18. O-O {[%clk
0:02:09.8]} 18... Qc7 {[%clk 0:02:11.6]} 19. Rfc1 {[%clk 0:02:07]} 19... Rfc8
{[%clk 0:02:08.9]} 20. Qa6 {[%clk 0:01:58.2]} 20... e6 {[%clk 0:01:52.8]} 21.
Be1 {[%clk 0:01:55.2]} 21... Ndc4 {[%clk 0:01:49.5]} 22. Ndxc4 {[%clk
0:01:54.4]} 22... Nxc4 {[%clk 0:01:49.5]} 23. Nxc4 {[%clk 0:01:54.1]} 23... Qxc4
{[%clk 0:01:49.6]} 24. Qxc4 {[%clk 0:01:52.9]} 24... Rxc4 {[%clk 0:01:50.5]} 25.
Ra6 {[%clk 0:01:48.8]} 25... Bf8 {[%clk 0:01:46.8]} 26. Rca1 {[%clk 0:01:47.5]}
26... Rc7 {[%clk 0:01:43.4]} 27. Kf2 {[%clk 0:01:44.5]} 27... Be7 {[%clk
0:01:40.6]} 28. Ke2 {[%clk 0:01:41.9]} 28... Kf8 {[%clk 0:01:40.9]} 29. Kd3
{[%clk 0:01:41.5]} 29... Ke8 {[%clk 0:01:41.4]} 30. R1a4 {[%clk 0:01:41.3]}
30... Kd7 {[%clk 0:01:41.2]} 31. c4 {[%clk 0:01:41.3]} 31... dxc4+ {[%clk
0:01:35.1]} 32. Rxc4 {[%clk 0:01:40.9]} 32... Rxc4 {[%clk 0:01:33.6]} 33. Kxc4
{[%clk 0:01:41]} 33... Bd8 {[%clk 0:01:33]} 34. Kd3 {[%clk 0:01:37.3]} 34... Bb6
{[%clk 0:01:31.9]} 35. Ba5 {[%clk 0:01:37.6]} 35... Kc6 {[%clk 0:01:28.8]} 36.
Bxb6 {[%clk 0:01:36.5]} 36... Kb7 {[%clk 0:01:28.7]} 37. Rxa7+ {[%clk
0:01:32.3]} 37... Rxa7 {[%clk 0:01:28.5]} 38. Bxa7 {[%clk 0:01:32.6]} 38... Kxa7
{[%clk 0:01:29.4]} 39. Ke4 {[%clk 0:01:29.6]} 39... f6 {[%clk 0:01:21]} 40. d5
{[%clk 0:01:30]} 40... Kb6 {[%clk 0:01:15.4]} 41. dxe6 {[%clk 0:01:29.4]} 41...
Kc6 {[%clk 0:01:15.3]} 42. f5 {[%clk 0:01:29]} 42... Kd6 {[%clk 0:01:13.9]} 43.
g4 {[%clk 0:01:28.6]} 43... Ke7 {[%clk 0:01:08]} 44. h3 {[%clk 0:01:27.5]} 44...
Kd6 {[%clk 0:00:58.7]} 45. Kd4 {[%clk 0:01:27.4]} 45... Kc6 {[%clk 0:00:54.2]}
46. e4 {[%clk 0:01:26.5]} 46... Kd6 {[%clk 0:00:54.4]} 47. e5+ {[%clk
0:01:14.2]} 47... fxe5+ {[%clk 0:00:53.7]} 48. Ke4 {[%clk 0:01:14.3]} 48... g5
{[%clk 0:00:45.2]} 49. e7 {[%clk 0:01:05.2]} 49... Kxe7 {[%clk 0:00:42.8]} 50.
Kxe5 {[%clk 0:01:05.6]} 50... Kf7 {[%clk 0:00:42.3]} 51. f6 {[%clk 0:01:00.1]}
51... Kf8 {[%clk 0:00:37.5]} 52. Kf5 {[%clk 0:00:58.6]} 52... h6 {[%clk
0:00:37.6]} 53. Kg6 {[%clk 0:00:58.4]} 53... Kg8 {[%clk 0:00:38.3]} 54. Kxh6
{[%clk 0:00:58.3]} 54... Kf7 {[%clk 0:00:39]} 55. Kxg5 {[%clk 0:00:58.5]} 1-0